bitfinex/quotes_ETHUSD_20251023
["timestamp","ask_amount","ask_price","bid_price","bid_amount"]
[1761243072023,0.4488,3908.5,3908.3,3.357]
[1761243072427,3.00733826,3908.5,3907.8,3.357]
[1761243072626,2.558613,3908.4,3907.8,3.357]
[1761243072814,2.558613,3908.4,3906.9,0.67552448]
[1761243072815,0.2149,3907.9,3906.9,0.67552448]
[1761243073020,0.2149,3907.9,3907.0,3.359]
[1761243073220,0.4473,3907.8,3907.0,3.359]
[1761243073624,2.55905656,3907.7,3907.0,3.359]
[1761243073819,3.00630279,3907.8,3907.0,3.359]
[1761243074148,3.00635706,3907.7,3907.0,3.359]
[1761243074348,0.4473,3907.7,3907.0,3.359]
[1761243074552,0.4473,3907.7,3907.1,2.55944045]
[1761243074755,0.4473,3907.7,3907.0,5.9184926]
[1761243074920,0.4473,3907.7,3907.0,3.359]
[1761243075324,0.4473,3907.7,3907.0,5.91848738]
[1761243075554,2.55911986,3907.6,3907.0,3.359]
[1761243076154,0.4473,3907.5,3907.0,3.359]
[1761243076331,2.55905913,3907.7,3907.4,0.128]
[1761243076833,3.00644187,3907.6,3907.4,0.128]
[1761243077054,2.55918106,3907.5,3907.4,0.128]
[1761243077261,0.4473,3907.5,3907.4,0.128]
[1761243079156,2.55962046,3906.9,3905.7,1.12122448]
[1761243079347,3.00653057,3907.5,3906.1,3.76907047]
[1761243079348,0.4473,3907.5,3906.1,3.76907047]
[1761243079549,2.55956995,3907.0,3906.3,2.5599654]
[1761243079781,2.72021897,3906.9,3906.1,1.209]
[1761243079949,3.16461897,3906.9,3906.2,2.56002969]
[1761243080267,0.605,3906.9,3906.1,3.76909801]
[1761243080444,0.4444,3906.8,3905.5,0.67552448]
[1761243080649,2.55996463,3906.4,3905.6,3.353]
[1761243080948,0.4444,3906.8,3905.6,3.353]
[1761243081161,0.4444,3906.7,3905.6,3.353]
[1761243081480,2.55996189,3906.4,3905.6,5.91342167]
[1761243081686,0.4444,3906.7,3905.6,3.353]
[1761243081986,2.77137237,3905.7,3905.1,3.353]
[1761243082154,2.56060413,3905.4,3904.9,3.353]
[1761243082347,2.56042605,3905.6,3904.9,3.353]
[1761243082348,2.56062274,3905.3,3904.9,3.353]
[1761243082679,0.4483,3905.3,3904.9,3.353]
[1761243083086,2.56044644,3905.6,3904.9,5.91388013]
[1761243083383,2.56049616,3905.5,3904.9,6.76157596]
[1761243083768,2.56044862,3905.6,3904.9,6.76157596]
[1761243084089,2.56052897,3905.5,3905.3,0.002]
[1761243084597,2.56044177,3905.6,3905.3,0.002]
[1761243084954,2.56041166,3905.7,3905.3,0.002]
[1761243085153,2.56042714,3905.6,3905.3,0.002]
[1761243086217,2.56037404,3905.7,3905.3,0.002]
[1761243086909,2.56043255,3905.6,3905.3,0.002]
[1761243087308,0.6593,3905.9,3905.3,0.002]
[1761243087517,2.56030873,3905.8,3905.3,0.002]
[1761243087719,0.6616,3906.2,3905.3,0.002]
[1761243087928,0.218,3906.5,3905.4,3.8226]
[1761243088422,0.4414,3906.8,3905.5,0.4696]
[1761243088423,2.5596504,3906.8,3905.5,0.4696]
[1761243088717,2.55965297,3906.8,3906.1,2.56003963]
[1761243088918,2.55965297,3906.8,3906.2,3.353]
[1761243089123,2.72018191,3906.9,3906.7,0.128]
[1761243089323,4.5539396,3906.8,3906.7,0.128]
[1761243089497,2.55998344,3906.3,3906.0,2.322]
[1761243089822,2.55991965,3906.4,3905.9,2.322]
[1761243090021,2.55990523,3906.4,3906.3,0.128]
[1761243090220,0.4391,3906.7,3906.3,0.128]
[1761243090528,2.55979198,3906.6,3906.3,0.128]
[1761243091418,2.55990169,3906.4,3906.3,0.128]
[1761243092023,2.99900169,3906.4,3906.3,0.128]
[1761243094300,2.56033663,3905.8,3905.5,3.353]
[1761243094495,2.72022207,3906.9,3905.3,0.002]
[1761243094496,2.56003276,3906.2,3905.3,0.002]
[1761243094723,2.56055717,3905.4,3905.3,0.13]
[1761243094924,1.5552,3905.9,3905.3,0.002]
[1761243095130,2.5604328,3905.6,3905.3,0.13]
[1761243095309,2.5604328,3905.6,3905.3,0.002]
[1761243095509,2.5604328,3905.6,3905.5,0.128]
[1761243098336,2.9896328,3905.6,3905.5,0.128]
[1761243098632,2.56055717,3905.4,3905.3,0.13]
[1761243100740,2.56055717,3905.4,3905.3,0.002]
[1761243100741,4.54495717,3905.4,3905.3,0.002]
[1761243105908,7.89795717,3905.4,3905.3,0.002]
[1761243108214,7.89795717,3905.4,3905.3,0.54646522]
[1761243108413,7.46875717,3905.4,3905.3,0.002]
[1761243108632,2.56068831,3905.2,3905.1,0.002]
[1761243108825,4.11588831,3905.2,3905.1,0.002]
[1761243109024,4.54508831,3905.2,3905.1,0.002]
[1761243109427,2.56088504,3904.9,3904.8,0.002]
[1761243109745,7.63678504,3904.9,3904.8,0.002]
[1761243109928,8.57026504,3904.9,3904.8,0.002]
[1761243110862,8.57026504,3904.9,3903.4,0.1991]
[1761243110863,3.06802739,3904.5,3904.0,1e-08]
[1761243111016,13.93444017,3904.1,3904.0,1e-08]
[1761243111216,17.28744017,3904.1,3904.0,1e-08]
[1761243111548,17.71404017,3904.1,3904.0,1e-08]
[1761243112841,17.71404017,3904.1,3903.3,1e-08]
[1761243112842,4.81134913,3903.4,3903.3,1e-08]
[1761243113157,8.16434913,3903.4,3903.3,1e-08]
[1761243113651,8.61814913,3903.4,3903.3,1e-08]
[1761243113850,5.26514913,3903.4,3903.3,1e-08]
[1761243114060,8.61914913,3903.4,3903.3,1e-08]
[1761243115761,5.26514913,3903.4,3903.3,1e-08]
[1761243115960,8.61914913,3903.4,3903.3,1e-08]
[1761243116160,5.26514913,3903.4,3903.3,1e-08]
[1761243116360,4.75826913,3903.4,3903.3,1e-08]
[1761243116569,4.11706913,3903.4,3903.3,1e-08]
[1761243116773,7.47106913,3903.4,3903.3,1e-08]
[1761243117675,5.91581048,3903.5,3903.3,1e-08]
[1761243117881,1.5552,3903.4,3903.3,1e-08]
[1761243118090,9.31095038,3904.6,3903.3,0.44120001]
[1761243118264,2.56186913,3903.4,3903.3,1e-08]
[1761243119347,2.56186913,3903.4,3902.9,0.002]
[1761243119348,4.11706913,3903.4,3902.9,0.002]
[1761243119547,9.31095038,3903.0,3901.9,0.90213532]
[1761243119762,1.5552,3902.8,3902.1,0.1991]
[1761243120047,1.5552,3902.8,3901.1,0.90213532]
[1761243120247,1.5552,3902.8,3901.0,3.5531]
[1761243120248,2.56312744,3901.5,3901.2,0.4525]
[1761243120458,2.56298071,3901.8,3901.3,0.6516]
[1761243120459,2.56294072,3901.8,3901.3,0.6516]
[1761243120663,2.56219835,3902.9,3902.0,2.56274402]
[1761243120956,0.128,3903.3,3902.1,0.9078744]
[1761243121146,2.56237855,3902.7,3902.1,0.6516]
[1761243121480,3.356,3903.2,3902.1,0.6516]
[1761243121481,2.56227563,3902.8,3902.2,0.4525]
[1761243121676,2.56218697,3903.0,3902.7,0.128]
[1761243121894,2.56208459,3903.1,3902.7,0.128]
[1761243122192,2.56213169,3903.0,3902.9,0.128]
[1761243123876,0.128,3903.7,3902.9,0.5805]
[1761243124079,2.561858,3903.5,3902.9,0.4525]
[1761243124249,1.5552,3903.7,3903.0,0.4525]
[1761243124453,2.56187926,3903.4,3903.0,0.4525]
[1761243124652,2.56187926,3903.4,3903.1,0.1983]
[1761243124956,2.56182015,3903.5,3903.1,0.1983]
[1761243125157,2.56174671,3903.6,3903.1,0.6508]
[1761243125359,2.56140012,3904.2,3903.1,0.6508]
[1761243125360,1.5552,3904.8,3903.1,1.023353]
[1761243125665,0.001,3904.5,3903.2,3.8075]
[1761243125972,0.001,3904.5,3903.8,2.56159786]
[1761243126292,0.001,3904.5,3903.9,3.01403838]
[1761243126616,0.001,3904.5,3903.9,0.4525]
[1761243126790,0.001,3904.5,3904.0,0.4525]
[1761243126952,0.001,3904.5,3904.0,3.0139754]
[1761243128583,0.001,3904.5,3904.0,6.3679754]
[1761243131401,0.001,3904.5,3904.0,3.8065]
[1761243133617,0.001,3904.5,3904.0,3.354]
[1761243133778,2.56220641,3904.5,3904.0,3.354]
[1761243133979,2.56220641,3904.5,3904.0,3.482]
[1761243134883,2.56127759,3904.4,3904.0,3.354]
[1761243135414,0.0019,3904.9,3904.1,0.686]
[1761243135729,2.5608327,3905.0,3904.1,0.686]
[1761243135882,0.1935,3905.2,3904.1,0.686]
[1761243136083,2.56086374,3905.0,3904.2,2.56133496]
[1761243136278,2.56086374,3905.0,3904.2,3.28515005]
[1761243136704,0.001,3904.5,3904.3,2.56127822]
[1761243136910,2.56219045,3904.5,3904.3,3.354]
[1761243137081,0.001,3904.5,3904.3,3.354]
[1761243137279,0.001,3904.5,3903.8,0.2335]
[1761243137475,2.75606453,3904.5,3903.8,0.2335]
[1761243137814,0.1949,3904.5,3903.7,3.354]
[1761243138039,0.001,3904.5,3903.8,0.83315]
[1761243138241,2.56219315,3904.5,3903.8,0.83315]
[1761243138538,2.56123973,3904.4,3903.8,0.83315]
[1761243138840,0.001,3904.5,3904.1,2.56139899]
[1761243139037,0.001,3904.5,3903.9,0.4525]
[1761243139536,0.001,3904.5,3903.9,3.01398556]
[1761243140040,2.56217439,3904.5,3903.9,0.4525]
[1761243140243,2.56217439,3904.5,3903.9,0.7089]
[1761243140428,0.001,3904.5,3903.9,3.0140162]
[1761243141040,0.001,3904.5,3904.1,2.56135035]
[1761243141242,0.001,3904.5,3904.1,2.56135539]
[1761243141414,0.001,3904.5,3904.2,0.4525]
[1761243142240,2.56215183,3904.5,3904.2,0.4525]
[1761243142418,0.001,3904.5,3904.0,2.56145998]
[1761243142820,0.001,3904.5,3904.1,2.56140637]
[1761243143023,0.001,3904.5,3904.2,2.56134239]
[1761243143244,0.001,3904.5,3904.1,0.4525]
[1761243143425,0.001,3904.5,3904.1,3.01388537]
[1761243144321,0.001,3904.5,3904.4,2.56121299]
[1761243144723,0.001,3904.5,3904.4,3.01371299]
[1761243144922,0.001,3904.5,3904.4,3.14171299]
[1761243150658,0.001,3904.5,3904.4,3.52059299]
[1761243150965,0.001,3904.5,3904.4,3.01371299]
[1761243151172,0.001,3904.5,3904.4,3.99673112]
[1761243152342,0.001,3904.5,3904.4,4.89886644]
[1761243152538,0.001,3904.5,3904.4,5.40574644]
[1761243152780,0.001,3904.5,3904.4,5.85850942]
[1761243152989,0.363,3906.9,3904.4,5.85850942]
[1761243152990,0.2373,3908.0,3904.6,0.76328]
[1761243153211,0.3628,3907.9,3906.5,2.55981185]
[1761243153363,0.3638,3907.8,3906.6,1.0563]
[1761243153558,1.919,3907.8,3906.7,2.55965362]
[1761243153764,0.3638,3907.8,3906.8,2.5596361]
[1761243153990,2.92279358,3907.8,3906.8,2.5595885]
[1761243154205,1.5552,3907.6,3906.9,2.55954752]
[1761243154404,2.55911842,3907.6,3907.0,3.352]
[1761243154565,2.55911842,3907.6,3906.8,2.55962514]
[1761243154566,2.55911842,3907.6,3907.1,3.352]
[1761243154980,2.92191842,3907.6,3907.1,3.352]
[1761243155390,0.3628,3907.6,3907.1,3.352]
[1761243155705,2.55921511,3907.5,3907.1,3.352]
[1761243156316,0.001,3907.8,3906.1,0.9078591]
[1761243156472,0.3628,3907.4,3906.2,1.622]
[1761243156666,1.5552,3907.3,3905.9,0.9078591]
[1761243156894,2.559905,3906.4,3905.8,3.352]
[1761243157196,2.55994997,3906.4,3905.8,3.352]
[1761243157571,2.55985144,3906.5,3905.8,3.352]
[1761243157771,2.55985144,3906.5,3905.8,5.91227209]
[1761243158185,2.55970844,3906.7,3905.8,3.352]
[1761243158508,2.55985549,3906.5,3905.8,3.352]
[1761243158695,2.55985549,3906.5,3905.8,6.36076956]
[1761243159477,0.3212,3907.3,3905.9,0.4485]
[1761243159676,2.55958547,3906.9,3905.9,0.4485]
[1761243159904,2.5596461,3906.8,3905.9,3.00866734]
[1761243160224,2.55959561,3906.9,3906.0,3.00863532]
[1761243160405,2.55947754,3907.1,3906.3,2.55990809]
[1761243160620,2.55947754,3907.1,3906.8,0.128]
[1761243160825,2.55944306,3907.1,3907.0,0.128]
[1761243161337,2.65844306,3907.1,3907.0,0.128]
[1761243164922,2.55953097,3907.0,3906.4,3.351]
[1761243165235,2.7522209,3906.9,3906.8,0.128]
[1761243165826,2.8512209,3906.9,3906.8,0.128]
[1761243166430,2.55979176,3906.6,3906.2,3.35]
[1761243166626,0.2916,3906.9,3905.6,0.2358]
[1761243166627,0.1926,3906.9,3905.6,0.2358]
[1761243166815,0.099,3906.8,3905.7,3.35]
[1761243167024,2.55970512,3906.7,3906.6,0.128]
[1761243167340,2.55970512,3906.7,3905.7,3.35]
[1761243167341,2.56011873,3906.1,3905.7,3.35]
[1761243167840,2.56004947,3906.2,3906.0,0.128]
[1761243168250,2.5600983,3906.1,3906.0,0.128]
[1761243169547,1.6542,3906.7,3906.0,0.128]
[1761243169718,2.5600983,3906.1,3906.0,0.128]
[1761243169920,2.55996723,3906.3,3906.2,0.128]
[1761243170111,2.56003276,3906.2,3906.0,0.128]
[1761243170318,1.6542,3906.7,3906.2,0.128]
[1761243170640,2.55996723,3906.3,3906.2,0.128]
[1761243172254,0.099,3906.3,3905.6,4.0343]
[1761243172451,2.56003276,3906.2,3906.1,0.128]
[1761243174739,4.11523276,3906.2,3906.1,0.128]
[1761243174938,2.56062274,3905.3,3905.2,3.35]
[1761243175237,2.56056912,3905.4,3905.2,0.5765]
[1761243175447,2.56062274,3905.3,3905.2,0.128]
[1761243175834,2.56062274,3905.3,3905.2,0.5765]
[1761243177923,2.56062274,3905.3,3905.2,0.128]
[1761243179024,2.56062274,3905.3,3903.8,0.002]
[1761243179025,4.24454419,3904.2,3903.8,0.002]
[1761243179251,7.59354419,3904.2,3903.8,0.002]
[1761243179519,7.57014419,3904.2,3903.8,0.002]
[1761243181725,7.46554419,3904.2,3903.8,0.002]
[1761243182156,4.11654419,3904.2,3903.8,0.002]
[1761243183660,1.5552,3904.4,3903.8,0.002]
[1761243183837,1.5552,3904.4,3904.1,0.7002]
[1761243184039,1.5552,3904.4,3904.1,0.2351]
[1761243184243,2.56134419,3904.2,3904.1,0.2351]
[1761243184442,2.56134419,3904.2,3904.1,0.002]
[1761243184841,2.56119263,3904.5,3904.1,0.2351]
[1761243185045,1.5552,3904.6,3904.1,0.7002]
[1761243185277,2.56128695,3904.3,3904.1,0.7002]
[1761243185573,2.56134419,3904.2,3904.1,0.002]
[1761243185776,4.11654419,3904.2,3904.1,0.002]
[1761243185933,4.22234419,3904.2,3904.1,0.002]
[1761243186356,4.22234419,3904.2,3903.4,0.002]
[1761243186357,2.5618035,3903.5,3903.4,0.002]
[1761243186665,17.39962878,3903.5,3903.4,0.002]
[1761243186830,18.23230878,3903.5,3903.4,0.002]
[1761243187030,2.5623943,3902.6,3902.5,0.002]
[1761243187286,17.40021958,3902.6,3902.5,0.002]
[1761243187435,2.56331385,3901.2,3900.8,0.789]
[1761243187637,2.56344527,3901.0,3898.9,1.36178866]
[1761243187862,2.56344527,3901.0,3900.6,0.2331]
[1761243187863,2.56351007,3901.0,3900.6,0.2331]
[1761243188537,2.56331385,3901.2,3900.6,0.2331]
[1761243188874,2.56357448,3900.9,3900.6,0.2331]
[1761243189033,2.56357448,3900.9,3900.5,0.4651]
[1761243189034,2.56359334,3900.8,3900.1,3.35]
[1761243189235,2.56359334,3900.8,3900.1,3.75482]
[1761243189571,2.56339633,3901.1,3900.7,0.128]
[1761243189864,2.5635767,3900.8,3900.7,0.128]
[1761243190162,13.28262528,3901.3,3900.0,0.4651]
[1761243190163,2.56382864,3900.5,3900.0,0.4651]
[1761243190328,1.5552,3900.9,3900.0,0.4651]
[1761243190329,1.5552,3900.7,3900.0,0.4651]
[1761243190529,2.5638969,3900.4,3900.0,0.4651]
[1761243190834,2.56359223,3900.8,3900.3,0.128]
[1761243191137,2.56371216,3900.6,3900.3,0.128]
[1761243191336,4.11890814,3900.6,3900.5,0.128]
[1761243191734,1.6574,3900.6,3899.8,3.35]
[1761243191974,1.6574,3900.6,3900.3,0.128]
[1761243191975,2.5638396,3900.4,3900.3,0.128]
[1761243192336,3.351,3900.8,3900.3,0.4651]
[1761243192563,1.5552,3900.7,3899.8,3.70831]
[1761243192767,1.5552,3900.7,3899.9,0.4651]
[1761243192954,2.56370814,3900.6,3899.9,0.4651]
[1761243193663,2.56364422,3900.7,3899.9,3.02925519]
[1761243193835,0.21,3902.0,3899.9,1.41860297]
[1761243194144,2.56270679,3902.2,3901.6,0.2331]
[1761243194349,3.351,3902.2,3901.6,0.2331]
[1761243194545,1.5552,3902.1,3901.6,0.2331]
[1761243194868,5.91367353,3902.2,3901.6,0.2331]
[1761243195169,1.5552,3902.1,3901.6,0.2331]
[1761243195356,2.56267,3902.2,3901.6,0.2331]
[1761243195558,0.3082,3902.5,3901.6,0.2331]
[1761243195559,3.351,3902.1,3901.6,0.2331]
[1761243195763,2.56284152,3902.0,3901.6,0.2331]
[1761243195971,4.11804152,3902.0,3901.3,0.4651]
[1761243196286,2.56286605,3901.9,3901.3,0.79125194]
[1761243196441,2.56286605,3901.9,3901.3,0.4651]
[1761243197146,1.5552,3902.0,3901.3,0.4651]
[1761243197474,1.5552,3902.0,3901.4,0.4651]
[1761243197984,1.5552,3902.0,3901.3,2.5632313]
[1761243197985,2.56295111,3901.8,3901.0,6.14753628]
[1761243198193,2.56295111,3901.8,3901.1,0.4651]
[1761243198785,2.563031,3901.7,3901.0,3.5841]
[1761243199077,2.56310878,3901.6,3901.0,3.351]
[1761243199282,2.56315043,3901.5,3901.0,3.351]
[1761243199782,0.1002,3901.5,3900.8,2.5635767]
[1761243199985,2.56318725,3901.4,3900.7,5.91462664]
[1761243200405,2.66333527,3901.5,3900.8,2.5635711]
[1761243200699,2.66331829,3901.5,3900.7,5.91459536]
[1761243200984,3.351,3901.7,3900.0,0.2331]
[1761243201186,1.5552,3901.4,3900.7,2.56364015]
[1761243201354,1.8,3901.3,3900.8,2.56356013]
[1761243201554,1.8,3901.3,3901.0,2.56343099]
[1761243201979,1.8,3901.3,3901.1,0.6982]
[1761243202181,2.56331385,3901.2,3900.2,3.8161]
[1761243202385,2.56338432,3901.1,3900.3,3.028963]
[1761243202588,2.56332457,3901.2,3900.5,2.56371285]
[1761243202892,0.2195,3901.9,3901.2,2.79640757]
[1761243203192,6.13335764,3901.9,3901.8,0.128]
[1761243203689,2.78235764,3901.9,3901.8,0.128]
[1761243204972,2.56285764,3901.9,3901.8,0.128]
[1761243206380,4.36285764,3901.9,3901.8,0.128]
[1761243206683,2.56326147,3901.3,3900.6,0.4447]
[1761243206997,2.56326147,3901.3,3900.6,3.00840252]
[1761243207176,2.56326147,3901.3,3901.2,0.128]
[1761243208203,2.66876147,3901.3,3901.2,0.128]
[1761243208376,2.56326147,3901.3,3901.2,0.128]
[1761243208701,2.56337955,3901.1,3901.0,0.002]
[1761243209325,2.66887955,3901.1,3901.0,0.002]
[1761243212205,1.5552,3901.9,3901.0,0.4509]
[1761243212370,3.35,3902.3,3901.1,3.12354651]
[1761243212572,3.35,3902.3,3901.2,0.4489]
[1761243212773,1.5552,3902.2,3901.2,3.01219724]
[1761243212973,1.8,3902.0,3901.5,2.56311375]
[1761243213184,1.8,3902.0,3901.5,0.4489]
[1761243213386,4.36279402,3902.0,3901.5,0.4489]
[1761243213617,1.8,3902.0,3901.5,0.4489]
[1761243213786,4.36283685,3902.0,3901.2,3.01219357]
[1761243213987,4.36283685,3902.0,3901.3,2.56324045]
[1761243214521,1.8,3902.0,3901.4,2.56317149]
[1761243214823,3.3552,3902.0,3901.4,2.56317149]
[1761243215027,2.56286329,3901.9,3901.3,0.4489]
[1761243215526,1.8,3902.0,3901.4,2.56317003]
[1761243215725,3.3552,3902.0,3901.4,2.56313288]
[1761243216239,1.8,3902.0,3901.3,0.4489]
[1761243216534,1.8,3902.0,3901.3,0.77363074]
[1761243216845,4.36280386,3902.0,3901.1,2.79644466]
[1761243216994,1.6618,3902.2,3901.2,2.56328573]
[1761243217317,2.56273297,3902.1,3901.4,2.56313268]
[1761243217535,1.5552,3902.2,3901.4,0.4489]
[1761243217735,4.11786754,3902.2,3901.4,0.4489]
[1761243217939,3.4566,3902.2,3901.1,0.682]
[1761243218095,2.66938455,3902.1,3901.1,0.682]
[1761243218295,2.56293674,3901.8,3901.1,0.682]
[1761243218490,2.56287324,3901.9,3901.2,2.56330437]
[1761243218794,2.56290581,3901.9,3901.7,0.128]
[1761243219136,3.6696,3901.8,3901.0,0.002]
[1761243219436,2.56313172,3901.5,3901.0,0.002]
[1761243219594,2.56318244,3901.4,3901.3,0.128]
[1761243219903,2.66888244,3901.4,3901.3,0.128]
[1761243220102,2.56337955,3901.1,3901.0,0.002]
[1761243220300,4.11857955,3901.1,3901.0,0.002]
[1761243222525,4.22427955,3901.1,3901.0,0.002]
[1761243224856,4.11857955,3901.1,3901.0,0.002]
[1761243225557,4.22427955,3901.1,3901.0,0.002]
[1761243227226,5.28322512,3901.1,3901.0,0.002]
[1761243227647,5.96767405,3901.1,3901.0,0.002]
[1761243227847,4.62572242,3900.7,3900.2,0.002]
[1761243228033,17.86809709,3900.7,3900.2,0.002]
[1761243228240,18.66235996,3900.7,3900.2,0.002]
[1761243228440,2.56478758,3899.0,3898.2,2.56527621]
[1761243228768,5.91369844,3899.1,3898.2,0.4489]
[1761243228942,2.56489076,3898.9,3898.2,0.4489]
[1761243229259,3.349,3899.1,3898.4,2.56514438]
[1761243229462,5.9137029,3899.1,3898.5,0.30140444]
[1761243229664,2.56477251,3899.0,3898.5,0.75030444]
[1761243229863,3.349,3899.1,3898.5,0.4489]
[1761243230066,2.56483255,3898.9,3898.5,0.4489]
[1761243230270,2.56483255,3898.9,3898.8,0.128]
[1761243230467,2.56476864,3899.0,3898.8,0.128]
[1761243230664,3.349,3899.1,3898.8,0.128]
[1761243230966,5.91371046,3899.1,3898.8,0.128]
[1761243231169,2.56482597,3898.9,3898.8,0.128]
[1761243231338,3.349,3899.1,3898.4,0.4489]
[1761243231535,3.349,3899.1,3898.6,2.56500665]
[1761243232074,2.56463178,3899.2,3898.0,0.2331]
[1761243232272,0.3357,3899.5,3898.7,0.4489]
[1761243232458,5.91349982,3899.4,3898.7,3.01383556]
[1761243232769,2.56475767,3899.1,3898.2,0.4489]
[1761243232939,2.56476774,3899.0,3898.3,2.56522073]
[1761243233137,2.56476774,3899.0,3898.2,3.01418443]
[1761243233343,2.56476774,3899.0,3898.2,0.77364125]
[1761243233571,0.213,3899.5,3897.8,0.86853649]
[1761243233874,2.56468352,3899.2,3898.4,2.56515212]
[1761243234073,0.1227,3899.1,3898.1,0.2331]
[1761243234242,5.91377098,3899.0,3898.1,0.2331]
[1761243234438,2.5649951,3898.7,3898.1,0.2331]
[1761243234861,2.56482597,3898.9,3898.1,1.09360137]
[1761243235059,3.349,3899.0,3898.1,1.09360137]
[1761243235060,5.91377927,3899.0,3898.2,0.4489]
[1761243235266,3.349,3899.0,3898.2,0.4489]
[1761243235572,2.56489176,3898.8,3897.8,0.86853649]
[1761243235780,2.56495754,3898.7,3898.0,2.56540176]
[1761243235980,2.56495754,3898.7,3897.9,2.56548074]
[1761243236150,2.56489176,3898.8,3897.8,0.86853649]
[1761243236350,1.5552,3898.5,3897.8,0.86853649]
[1761243236549,2.5651626,3898.4,3897.8,0.86853649]
[1761243236754,2.56523404,3898.3,3897.8,0.86853649]
[1761243237097,2.56529398,3898.2,3897.8,0.86853649]
[1761243237581,2.56529398,3898.2,3897.8,1.31743649]
[1761243238083,0.1227,3898.5,3897.8,0.86853649]
[1761243238284,4.12023574,3898.6,3897.8,0.86853649]
[1761243238451,2.56548397,3897.9,3897.8,0.86853649]
[1761243238655,2.5654304,3898.0,3897.8,0.86853649]
[1761243238856,3.349,3898.2,3897.8,0.86853649]
[1761243239184,5.91441274,3898.1,3897.8,0.86853649]
[1761243239384,2.56542627,3898.0,3897.8,0.86853649]
[1761243239685,2.56548397,3897.9,3897.8,0.86853649]
[1761243240201,2.89998397,3897.9,3897.8,0.86853649]
[1761243240494,4.45518397,3897.9,3897.8,0.86853649]
[1761243240854,6.25518397,3897.9,3897.8,0.86853649]
[1761243241394,6.38318397,3897.9,3897.8,0.86853649]
[1761243241776,3.8177,3897.9,3897.8,0.87053649]
[1761243241977,1.8,3897.9,3897.8,0.87053649]
[1761243242155,2.80129383,3898.2,3897.8,0.87053649]
[1761243242156,3.349,3898.0,3897.8,0.87053649]
[1761243242352,5.91444171,3898.0,3897.8,0.87053649]
[1761243242558,4.22158397,3897.9,3897.8,0.87053649]
[1761243242958,7.46968397,3897.9,3897.8,0.87053649]
[1761243243184,7.57058397,3897.9,3897.8,0.87053649]
[1761243243585,4.22158397,3897.9,3897.8,0.87053649]
[1761243243791,7.57058397,3897.9,3897.8,0.87053649]
[1761243244588,4.9042,3897.9,3897.8,0.87053649]
[1761243245483,7.46968397,3897.9,3897.8,0.87053649]
[1761243245702,6.7042,3897.9,3897.8,0.87053649]
[1761243246215,3.3552,3897.9,3897.8,0.87053649]
[1761243246582,6.7042,3897.9,3897.8,0.87053649]
[1761243247690,9.37188397,3897.9,3897.8,0.87053649]
[1761243249036,1.8,3897.9,3897.8,0.87053649]
[1761243249214,6.02288397,3897.9,3897.8,0.87053649]
[1761243250220,6.52976397,3897.9,3897.8,0.87053649]
[1761243250386,6.52976397,3897.9,3897.8,1e-08]
[1761243250895,9.87876397,3897.9,3897.8,1e-08]
[1761243252322,12.57276397,3897.9,3897.8,1e-08]
[1761243252616,12.70076397,3897.9,3897.8,1e-08]
[1761243252789,13.24997634,3897.9,3897.8,1e-08]
[1761243252990,13.24997634,3897.9,3897.4,0.002]
[1761243252991,7.32182727,3897.5,3897.4,0.002]
[1761243253299,20.11433637,3897.5,3897.4,0.002]
[1761243253497,20.66354661,3897.5,3897.4,0.002]
[1761243254322,20.66354661,3897.5,3891.8,0.40190196]
[1761243254323,2.56703002,3895.6,3894.9,0.676]
[1761243254642,2.56706493,3895.5,3894.9,0.2269]
[1761243254788,5.91601648,3895.6,3894.9,0.2269]
[1761243254990,3.349,3895.6,3894.7,0.2269]
[1761243255208,5.91601834,3895.6,3894.7,0.2269]
[1761243255413,5.91601834,3895.6,3894.1,2.56798255]
[1761243255414,0.2121,3895.5,3894.1,2.56798255]
[1761243255600,2.56719303,3895.4,3894.2,0.3150922]
[1761243255802,3.349,3895.3,3894.4,2.56777408]
[1761243256037,3.349,3895.3,3894.5,2.56771654]
[1761243256191,3.349,3895.3,3894.3,0.4491]
[1761243256386,5.91620986,3895.3,3894.3,0.4491]
[1761243256618,6.12830986,3895.3,3894.3,2.90106974]
[1761243256832,3.5611,3895.3,3894.1,0.4491]
[1761243257035,0.2121,3895.2,3894.0,0.4491]
[1761243257335,0.2121,3895.2,3894.2,2.56790702]
[1761243257486,0.2121,3895.2,3894.3,2.56784763]
[1761243257685,2.71163812,3895.7,3894.3,2.56784763]
[1761243257686,2.56714931,3895.4,3894.4,2.56778315]
[1761243257886,0.2121,3895.6,3894.6,2.56765767]
[1761243258133,1.8,3895.4,3894.5,0.4491]
[1761243258353,1.8,3895.4,3894.5,3.01679695]
[1761243258818,4.36713283,3895.4,3894.5,0.4491]
[1761243259020,3.349,3895.3,3894.5,0.4491]
[1761243259218,0.2344,3894.6,3892.6,0.2269]
[1761243259540,2.56778964,3894.4,3893.1,2.56858276]
[1761243259705,1.581,3894.5,3893.3,2.5684616]
[1761243259908,1.581,3894.5,3893.4,0.676]
[1761243260108,1.581,3894.5,3893.8,2.56813116]
[1761243260312,1.581,3894.5,3893.5,0.4491]
[1761243260508,1.581,3894.5,3893.6,2.56831723]
[1761243260708,1.581,3894.5,3893.5,0.4491]
[1761243260922,1.581,3894.5,3893.9,2.56810967]
[1761243261147,1.581,3894.5,3894.1,0.002]
[1761243261509,4.14873203,3894.5,3894.1,0.002]
[1761243261710,1.581,3894.5,3894.1,0.002]
[1761243262359,1.581,3894.5,3894.2,0.2269]
[1761243262562,1.581,3894.5,3894.1,0.002]
[1761243262938,1.581,3894.5,3894.1,0.13]
[1761243263259,0.123,3894.4,3894.1,0.002]
[1761243263460,2.56792152,3894.2,3894.1,0.002]
[1761243263662,2.69592152,3894.2,3894.1,0.002]